bitfinex/quotes_ETHUSD_20260308
["timestamp","ask_amount","ask_price","bid_price","bid_amount"]
[1772982899242,0.41487948,1946.5,1946.0,0.47616681]
[1772982900855,1.69928126,1946.5,1946.0,0.47616681]
[1772982901995,0.26265639,1946.4,1946.1,0.47616681]
[1772982902501,1.28433338,1946.6,1946.1,0.47616681]
[1772982902787,0.41573983,1946.3,1945.7,0.47616681]
[1772982903086,0.41573983,1946.1,1945.5,0.48351339]
[1772982903490,0.41573983,1946.1,1945.5,0.0011]
[1772982903712,0.41573983,1946.1,1945.5,0.48351339]
[1772982904498,0.41622636,1945.9,1945.5,0.0011]
[1772982905068,1.70104494,1945.8,1945.5,0.0011]
[1772982909800,0.26265639,1945.7,1945.5,0.0011]
[1772982910100,0.26265639,1945.7,1945.5,0.50333569]
[1772982910285,0.06023884,1945.7,1945.6,0.50223569]
[1772982910802,0.06023884,1945.7,1945.6,0.50323569]
[1772982911682,1.34512345,1945.7,1945.5,0.0011]
[1772982913208,0.50252306,1945.6,1945.2,0.001]
[1772982913410,0.50252306,1945.4,1945.0,0.50477455]
[1772982913619,0.50252306,1945.4,1945.0,0.00253886]
[1772982913779,1.78767188,1945.3,1945.0,0.00253886]
[1772982915637,0.5627619,1945.2,1944.8,0.50223569]
[1772982915930,1.28528096,1945.1,1944.8,0.50223569]
[1772982916229,1.3455198,1945.1,1944.8,0.50223569]
[1772982916826,1.3455198,1945.1,1944.7,0.001]
[1772982917426,2.8585198,1945.1,1944.7,0.50323569]
[1772982919018,2.8585198,1945.1,1944.8,0.50223569]
[1772982919220,2.8585198,1945.1,1944.6,0.001]
[1772982919221,0.06023884,1945.0,1944.6,0.50323569]
[1772982919607,0.50252306,1945.0,1944.6,0.50323569]
[1772982920334,1.28541313,1944.9,1944.6,0.50323569]
[1772982920850,1.28541313,1944.9,1944.6,0.001]
[1772982920851,0.06023884,1944.8,1944.6,0.001]
[1772982922403,1.28554532,1944.7,1944.6,0.001]
[1772982923113,1.34577067,1944.8,1944.6,0.001]
[1772982923422,1.34577067,1944.8,1944.7,0.0011]
[1772982927452,1.84829373,1944.8,1944.7,0.0011]
[1772982928147,0.5627619,1944.7,1944.4,0.001]
[1772982928346,0.50252306,1944.6,1944.4,0.001]
[1772982928565,0.5627619,1944.6,1944.4,0.001]
[1772982928717,0.06023884,1944.5,1944.4,0.001]
[1772982928917,0.5627619,1944.5,1944.4,0.001]
[1772982929120,0.5627619,1944.5,1944.0,0.3603514]
[1772982929447,0.50252306,1944.3,1944.0,0.3603514]
[1772982930033,0.50252306,1944.3,1943.7,1.2861956]
[1772982930237,0.06023884,1944.2,1943.8,0.50223569]
[1772982930645,0.06023884,1944.1,1943.8,0.50223569]
[1772982930833,0.05331688,1944.1,1943.8,0.50223569]
[1772982931525,1.33928548,1944.1,1943.8,0.50223569]
[1772982931733,0.05331688,1944.1,1943.8,0.50223569]
[1772982932048,1.33927298,1944.1,1943.8,0.50223569]
[1772982932440,0.05331688,1944.1,1943.8,0.50223569]
[1772982933039,0.46000504,1944.7,1943.9,0.48664803]
[1772982933247,1.97800504,1944.7,1943.9,0.48664803]
[1772982933746,1.74561647,1944.6,1944.1,0.48664803]
[1772982933951,0.46000504,1944.5,1944.1,0.48664803]
[1772982934351,1.28561143,1944.6,1944.1,0.48664803]
[1772982934649,2.79861143,1944.6,1944.1,0.48664803]
[1772982935079,3.25861647,1944.6,1944.1,0.48664803]
[1772982936477,0.46000504,1944.5,1944.1,0.48664803]
[1772982936684,0.46000504,1944.5,1944.2,0.0011]
[1772982937848,0.46000504,1944.5,1944.2,0.48774803]
[1772982939582,1.7457204,1944.5,1944.2,0.48774803]
[1772982940980,0.46000504,1944.5,1944.2,0.48774803]
[1772982941182,0.46000504,1944.8,1944.3,0.48664803]
[1772982941592,1.97800504,1944.8,1944.3,0.48664803]
[1772982941798,3.26352836,1944.8,1944.4,0.48664803]
[1772982943290,0.46000504,1944.5,1944.2,0.0011]
[1772982943497,0.46000504,1944.5,1944.0,0.0011]
[1772982944076,1.74574871,1944.4,1944.0,0.48774803]
[1772982947497,3.26974871,1944.4,1944.0,0.48774803]
[1772982947803,3.26974871,1944.4,1944.0,0.0011]
[1772982947804,0.46000504,1944.3,1944.0,0.0011]
[1772982948307,0.46000504,1944.3,1943.7,0.48664803]
[1772982948894,0.46000504,1944.5,1944.1,0.48774803]
[1772982949097,0.001,1944.5,1944.1,0.48774803]
[1772982949410,0.001,1944.5,1944.3,0.48664803]
[1772982949613,1.7454717,1944.9,1944.4,0.48664803]
[1772982949817,1.97700504,1944.8,1944.4,0.48664803]
[1772982952915,3.26248474,1944.8,1944.4,1.77238185]
[1772982953112,3.26248474,1944.8,1944.5,0.48664803]
[1772982953113,0.46000504,1944.8,1944.5,0.48664803]
[1772982953317,3.26748807,1944.8,1944.5,0.48664803]
[1772982953893,3.26748807,1944.8,1944.4,0.48664803]
[1772982956918,1.98200504,1944.8,1944.4,0.48664803]
[1772982957102,3.26748711,1944.8,1944.4,1.77236704]
[1772982957419,3.26748711,1944.8,1944.4,1.28571901]
[1772982957626,1.98200504,1944.8,1944.5,0.48664803]
[1772982958288,1.28789617,1945.0,1944.5,0.48664803]
[1772982958494,0.46000504,1944.9,1944.5,0.48664803]
[1772982958892,0.46000504,1944.9,1944.4,0.48664803]
[1772982959087,1.74548208,1944.9,1944.5,0.48664803]
[1772982959723,0.46000504,1944.9,1944.5,0.48664803]
[1772982960223,1.74542603,1944.9,1944.5,0.48664803]
[1772982961228,0.001,1944.8,1944.5,0.48664803]
[1772982965228,0.001,1944.8,1944.5,1.77232487]
[1772982965799,0.001,1944.8,1944.5,0.48664803]
[1772982967053,0.001,1944.8,1944.5,1.77232497]
[1772982967354,0.001,1944.8,1944.5,0.48664803]
[1772982968132,0.50422047,1944.8,1944.4,1.74982304]
[1772982968335,0.50422047,1944.8,1944.3,5.14313183]
[1772982968336,0.50322047,1944.6,1944.1,0.0011]
[1772982969331,0.50322047,1944.4,1944.1,0.0011]
[1772982970835,2.03322047,1944.4,1944.1,0.0011]
[1772982971006,0.50322047,1944.3,1944.1,0.0011]
[1772982971206,1.53,1944.4,1944.1,0.46523298]
[1772982971439,3.31897188,1944.4,1944.1,0.46523298]
[1772982971807,3.31897188,1944.4,1944.1,0.0011]
[1772982972005,0.50322047,1944.3,1944.1,0.0011]
[1772982972207,3.31897188,1944.4,1944.1,0.0011]
[1772982972628,3.31897188,1944.4,1944.1,0.46523298]
[1772982973131,3.31897188,1944.4,1944.2,0.0011]
[1772982974236,1.78897188,1944.4,1944.2,0.0011]
[1772982974440,3.31994242,1944.5,1944.2,0.46523298]
[1772982974842,0.50322047,1944.4,1944.2,0.0011]
[1772982975070,2.81672195,1944.5,1944.2,0.0011]
[1772982975210,2.81672195,1944.5,1944.2,0.46523298]
[1772982975536,0.50322047,1944.4,1944.2,0.0011]
[1772982977606,0.50322047,1944.6,1944.3,0.46413298]
[1772982978346,0.001,1944.7,1944.3,0.46413298]
[1772982981354,0.001,1944.7,1944.5,0.46413298]
[1772982984139,0.001,1944.7,1944.6,0.46413298]
[1772982986564,0.001,1944.7,1944.5,1.74979601]
[1772982988168,0.001,1944.7,1944.5,0.46413298]
[1772982988485,0.50422047,1944.7,1944.4,0.0011]
[1772982990638,0.50322047,1944.6,1944.4,0.0011]
[1772982993571,1.78884556,1944.6,1944.4,0.0011]
[1772982994272,1.78641525,1944.6,1944.4,0.0011]
[1772982994458,0.50079016,1944.5,1944.4,0.0011]
[1772982994661,0.50079016,1944.5,1944.3,0.0011]
[1772982995264,3.3183901,1944.7,1944.3,0.49222372]
[1772982997147,3.3183901,1944.7,1944.5,0.0011]
[1772982999276,0.50079016,1944.6,1944.5,0.0011]
[1772982999451,0.50079016,1944.6,1944.3,0.0011]
[1772983001779,0.50079016,1944.4,1944.3,0.0011]
[1772983003382,0.50079016,1944.6,1944.3,0.0011]
[1772983003545,1.535,1944.5,1944.3,0.49222372]
[1772983003749,2.82067765,1944.5,1944.3,0.49222372]
[1772983004583,3.32146781,1944.5,1944.3,0.0011]
[1772983005967,1.78646781,1944.5,1944.3,0.0011]
[1772983006150,1.78646781,1944.5,1944.2,0.0011]
[1772983006354,1.78646781,1944.5,1944.2,0.49222372]
[1772983009288,0.50079016,1944.4,1943.7,0.20966178]
[1772983009486,0.50079016,1944.4,1943.9,0.49112372]
[1772983009787,1.28567765,1944.5,1943.9,0.49112372]
[1772983009788,0.50079016,1944.2,1943.9,0.49112372]
[1772983012263,0.50079016,1944.2,1943.8,1.28722732]
[1772983012686,0.50079016,1944.1,1943.8,0.0011]
[1772983013488,1.78679839,1944.0,1943.8,0.0011]
[1772983015386,1.78657239,1944.4,1943.8,0.49222372]
[1772983015569,1.539,1944.3,1944.0,0.49112372]
[1772983017164,2.03979016,1944.3,1944.0,0.49112372]
[1772983017378,5.14388457,1944.5,1944.0,0.49112372]
[1772983017379,0.50179016,1944.5,1944.0,0.49112372]
[1772983017596,3.32550589,1944.5,1944.1,0.49112372]
[1772983020287,1.78750589,1944.5,1944.1,0.49112372]
[1772983020474,3.31550589,1944.5,1944.1,0.49112372]
[1772983021195,0.50079016,1944.4,1943.9,0.49112372]
[1772983021385,0.50079016,1944.4,1943.9,1.77719438]
[1772983022096,1.78660036,1944.3,1943.9,1.77719438]
[1772983022596,1.78660036,1944.3,1944.0,0.0011]
[1772983022969,0.50079016,1944.3,1944.0,0.0011]
[1772983024514,1.78660024,1944.3,1944.0,0.0011]
[1772983024811,0.48564897,1944.2,1944.0,0.0011]
[1772983024998,0.48564897,1944.1,1943.8,0.0011]
[1772983025320,0.48564897,1943.9,1943.5,0.0011]
[1772983027019,0.48564897,1943.8,1943.5,0.45714853]
[1772983027313,1.536,1943.8,1943.5,0.45714853]
[1772983027711,0.48564897,1944.0,1943.5,0.45714853]
[1772983028085,2.01764897,1944.0,1943.5,0.45714853]
[1772983028498,3.30366005,1944.0,1943.5,0.45714853]
[1772983029209,2.01764897,1944.0,1943.6,1.74232142]
[1772983029817,1.77157051,1944.2,1943.7,0.45604853]
[1772983030128,3.30557051,1944.2,1943.7,0.45604853]
[1772983032013,3.30757051,1944.2,1943.8,0.45604853]
[1772983032518,2.02164897,1944.2,1943.8,0.45604853]
[1772983033018,3.30752606,1944.2,1943.8,0.45604853]
[1772983033321,0.48564897,1944.1,1943.7,0.45604853]
[1772983034318,0.48564897,1944.1,1943.8,0.45604853]
[1772983034523,1.537,1944.1,1943.8,0.45714853]
[1772983035393,0.48664897,1944.2,1943.8,0.45714853]
[1772983035589,2.02464897,1944.2,1943.8,0.45714853]
[1772983035794,3.31052909,1944.2,1943.8,0.45714853]
[1772983039724,0.48564897,1944.1,1943.8,0.45714853]
[1772983042725,0.48564897,1944.1,1943.8,1.74323181]
[1772983043829,0.48564897,1944.1,1943.8,0.45714853]
[1772983047030,0.48664897,1944.1,1943.8,0.45714853]
[1772983047506,0.48664897,1944.1,1943.8,1.74322523]
[1772983048129,0.48664897,1944.1,1943.8,0.45714853]
[1772983049405,0.48664897,1944.1,1943.8,1.74326881]
[1772983050153,0.001,1944.1,1943.9,0.45604853]
[1772983050499,1.28695228,1944.1,1943.9,0.45604853]
[1772983050830,0.001,1944.1,1943.9,0.45604853]
[1772983059441,0.001,1944.0,1943.9,0.45604853]
[1772983066456,0.001,1944.0,1943.9,1.74212291]
[1772983066621,0.001,1944.0,1943.9,0.45604853]
[1772983066822,0.001,1944.0,1943.9,1.74212291]
[1772983074364,0.001,1944.1,1943.9,1.74212291]
[1772983075661,0.001,1944.2,1944.0,0.46819527]
[1772983077869,0.001,1944.2,1944.0,1.75417094]
[1772983078467,0.46975301,1944.2,1943.9,1.75423272]
[1772983080137,0.46875301,1944.1,1943.8,0.0011]
[1772983081958,1.75471074,1944.1,1943.8,0.0011]
[1772983082166,0.46875301,1944.0,1943.8,0.0011]
[1772983083240,0.46975301,1944.0,1943.8,0.0011]
[1772983090974,1.75578799,1944.0,1943.8,0.0011]
[1772983093579,1.28703498,1944.0,1943.8,0.0011]
[1772983093749,0.49496624,1943.9,1943.8,0.0011]
[1772983099757,1.28703498,1944.0,1943.9,0.49663261]
[1772983099758,0.001,1944.0,1943.9,0.49663261]
[1772983099961,2.83490193,1944.2,1943.9,0.49663261]
[1772983100782,3.32986817,1944.2,1943.9,0.49663261]
[1772983102993,0.49596624,1944.2,1943.9,0.49663261]
[1772983103177,0.49596624,1944.2,1944.0,0.49663261]
[1772983103178,0.001,1944.2,1944.0,0.49663261]
[1772983104093,0.49496624,1944.1,1943.8,0.0011]
[1772983105378,1.78096252,1944.1,1943.8,0.0011]
[1772983106496,0.49496624,1944.0,1943.8,0.0011]
[1772983107268,0.001,1944.2,1943.9,0.0011]
[1772983107494,0.001,1944.1,1943.9,0.49773261]
[1772983108999,0.001,1944.1,1943.9,0.0011]
[1772983109398,0.49596624,1944.1,1943.9,0.0011]
[1772983109894,0.001,1944.1,1943.9,0.49773261]
[1772983112404,0.49596624,1944.1,1943.9,0.0011]
[1772983113687,0.001,1944.1,1943.9,0.46210062]
[1772983114379,0.001,1944.2,1944.0,0.46100062]
[1772983119617,0.001,1944.2,1944.0,0.46210062]
[1772983120010,0.001,1944.1,1944.0,0.46210062]
[1772983121321,0.001,1944.2,1944.1,0.46100062]
[1772983124642,0.001,1944.5,1944.2,0.46100062]
[1772983125402,0.001,1944.5,1944.3,1.2858098]
[1772983125726,0.001,1944.5,1944.4,0.46100062]
[1772983126129,0.49703374,1944.5,1944.2,0.46100062]
[1772983128641,0.49703374,1944.5,1944.3,0.46100062]
[1772983128642,0.001,1944.5,1944.3,0.46100062]
[1772983130805,0.001,1944.5,1944.3,1.74676464]
[1772983131740,0.001,1944.5,1944.3,1.74680852]
[1772983131937,0.001,1944.5,1944.3,1.2858079]
[1772983132108,0.001,1944.5,1944.4,0.0011]
[1772983133048,0.001,1944.5,1944.4,0.46210062]
[1772983133233,0.001,1944.7,1944.5,0.46100062]
[1772983133741,0.4985726,1945.0,1944.5,0.46100062]
[1772983135435,1.78392663,1945.0,1944.5,1.74661479]
[1772983135641,1.78392663,1945.0,1944.6,0.46100062]
[1772983138548,1.78392663,1945.0,1944.6,1.74660255]
[1772983138951,1.28789289,1945.0,1944.7,0.46100062]
[1772983139252,0.00253886,1945.0,1944.7,0.46100062]
[1772983139825,1.28788778,1945.0,1944.7,0.46100062]
[1772983140551,0.00253886,1945.0,1944.7,0.46100062]
[1772983140754,0.49603374,1945.3,1944.9,0.46100062]
[1772983140961,0.49603374,1945.4,1944.9,0.46100062]
[1772983141182,1.28499632,1945.6,1944.9,0.46100062]
[1772983141326,1.78103006,1945.6,1944.9,0.46100062]
[1772983142527,0.49603374,1945.6,1944.9,0.46100062]
[1772983142727,0.45447576,1945.7,1945.1,0.48594506]
[1772983144851,1.73936652,1945.7,1945.2,0.45250704]
[1772983145059,0.49207349,1945.4,1944.6,0.45250704]
[1772983145246,0.49207349,1945.2,1944.6,0.45250704]
[1772983147043,0.49207349,1945.2,1944.8,0.45250704]
[1772983147245,1.77713307,1945.5,1944.8,0.45250704]
[1772983147448,0.49207349,1945.4,1944.8,0.45250704]
[1772983149569,0.49207349,1945.4,1945.0,0.45250704]
[1772983151174,0.49207349,1945.5,1945.0,0.45250704]
[1772983152047,0.49207349,1945.4,1945.0,1.73780322]
[1772983152236,0.49207349,1945.4,1944.9,1.73785806]
[1772983153069,0.49207349,1945.4,1945.0,0.45250704]
[1772983155169,0.49207349,1945.3,1944.8,0.45250704]
[1772983155754,0.49207349,1945.3,1945.1,0.001]
[1772983159975,0.49207349,1945.2,1945.0,0.001]
[1772983161879,1.77735445,1945.1,1945.0,0.001]
[1772983165080,0.49207349,1945.0,1944.8,0.001]
[1772983169284,0.49207349,1945.0,1944.9,0.001]
[1772983171061,1.77742053,1945.0,1944.9,0.001]
[1772983171887,0.002,1945.2,1944.9,0.45350704]
[1772983172055,1.28722715,1945.2,1944.9,0.45350704]
[1772983172682,0.002,1945.2,1944.9,0.45350704]
[1772983176356,0.002,1945.2,1945.0,0.48333604]
[1772983176757,0.002,1945.2,1944.9,1.28638066]
[1772983177083,0.49066569,1945.2,1944.9,1.7697167]
[1772983179288,0.48866569,1945.1,1944.9,0.001]
[1772983180561,0.48866569,1945.1,1944.6,1.76994272]
[1772983181381,0.48866569,1945.0,1944.6,1.76994272]
[1772983182878,0.48866569,1945.0,1944.7,0.48333604]
[1772983183279,0.002,1945.2,1944.7,0.48433604]
[1772983183582,0.002,1945.1,1944.9,0.48333604]
[1772983185372,0.002,1945.3,1944.9,0.48333604]
[1772983185576,0.002,1945.3,1945.1,0.48333604]
[1772983188989,0.002,1945.3,1945.2,1.76855092]
[1772983189802,0.002,1945.4,1945.2,1.76855092]
[1772983191182,0.002,1945.4,1945.2,0.48333604]
[1772983191377,0.002,1945.4,1945.2,1.76853511]
[1772983191577,0.002,1945.4,1945.3,0.48333604]
[1772983193809,0.002,1945.4,1945.2,1.28519907]
[1772983194010,0.002,1945.4,1945.1,1.76856365]
[1772983194583,0.002,1945.4,1945.2,0.48333604]
[1772983194779,0.002,1945.5,1945.2,0.48333604]
[1772983195702,0.002,1945.5,1945.3,1.76848486]
[1772983196606,0.002,1945.5,1945.3,1.76948486]
[1772983197307,0.002,1945.4,1945.3,1.76948486]
[1772983198178,0.002,1945.5,1945.3,1.76948486]
[1772983199282,0.002,1945.5,1945.3,0.48433604]
[1772983199488,0.002,1945.5,1945.3,1.76948121]
[1772983199698,0.002,1945.5,1945.4,1.76841879]
[1772983200004,0.002,1945.5,1945.4,0.48333604]
[1772983201128,0.49066569,1945.5,1945.2,0.001]
[1772983201334,0.002,1945.5,1945.3,0.48333604]
[1772983201836,0.002,1945.5,1945.3,1.76846932]
[1772983202136,0.002,1945.5,1945.3,0.48333604]
[1772983205032,0.002,1945.5,1945.3,1.76847892]
[1772983205406,0.002,1945.5,1945.3,0.48333604]
[1772983205932,0.47310432,1945.5,1945.2,1.28616597]
[1772983206160,0.47110432,1945.3,1944.7,1.28654464]
[1772983206447,0.47110432,1945.3,1944.7,1.28654431]
[1772983207129,0.47110432,1945.1,1944.7,1.28654431]
[1772983207334,0.47110432,1945.1,1944.8,0.46419111]
[1772983208020,0.47110432,1945.1,1944.7,1.75073542]
[1772983208702,0.47110432,1945.1,1944.7,0.001]
[1772983209310,1.28530569,1945.1,1944.7,0.001]
[1772983209510,0.47110432,1945.0,1944.7,0.001]
[1772983211130,0.47110432,1945.0,1944.9,0.001]
[1772983211714,1.75645136,1945.0,1944.9,0.001]
[1772983212041,0.47110432,1945.0,1944.9,0.001]
[1772983213131,0.47110432,1945.3,1944.9,0.46519111]
[1772983213547,0.47110432,1945.3,1944.9,0.001]
[1772983214146,0.47110432,1945.1,1944.9,0.001]
[1772983223884,0.47110432,1945.1,1945.0,0.0011]
[1772983231992,0.47110432,1945.0,1944.7,0.001]
[1772983232192,0.47110432,1945.0,1944.4,0.0011]
[1772983232693,0.48525019,1944.8,1944.4,0.0011]
[1772983234804,0.48525019,1944.6,1944.4,0.0011]
[1772983234998,2.03425019,1944.6,1944.4,0.0011]
[1772983236725,3.31986162,1944.6,1944.4,0.0011]
[1772983237390,2.83461143,1944.6,1944.4,0.0011]
[1772983237694,2.83461143,1944.6,1944.4,0.49722754]
[1772983238110,0.48525019,1944.8,1944.4,0.49722754]
[1772983238318,1.77163223,1945.0,1944.5,0.49712754]
[1772983238502,3.32163223,1945.0,1944.5,0.49712754]
[1772983238701,3.32163223,1945.0,1944.5,1.28665218]
[1772983238908,3.32163223,1945.0,1944.6,0.49612754]
[1772983244206,1.77163223,1945.0,1944.6,0.49612754]
[1772983244420,2.03825019,1944.9,1944.6,0.49612754]
[1772983245524,0.48525019,1944.8,1944.5,0.001]
[1772983245725,0.48525019,1944.8,1944.5,0.49712754]
[1772983247445,0.48525019,1944.8,1944.4,0.0011]
[1772983248441,0.48525019,1944.8,1944.6,0.0011]
[1772983248744,0.001,1944.7,1944.6,0.0011]
[1772983251312,0.50110615,1944.7,1944.6,0.0011]
[1772983252321,0.001,1944.7,1944.6,0.0011]
[1772983255513,0.50110615,1944.7,1944.6,0.0011]
[1772983267753,0.001,1944.7,1944.6,0.0011]
[1772983268709,0.001,1944.7,1944.2,1.28587593]
[1772983268710,2.48921078,1943.8,1942.7,1.28685494]
[1772983268864,0.50010615,1943.5,1943.1,0.04328844]
[1772983269067,0.50010615,1943.3,1942.6,1.28689649]
[1772983269371,0.50010615,1943.1,1942.2,1.28713381]
[1772983269576,0.50010615,1942.9,1942.2,1.28713381]
[1772983269772,0.50010615,1942.9,1942.1,3.77263719]
[1772983270077,0.50010615,1942.9,1942.0,0.00153886]
[1772983270274,0.50010615,1942.9,1942.0,1.28886025]
[1772983270599,0.50010615,1942.8,1942.0,1.28886025]
[1772983271570,0.50010615,1942.7,1942.0,0.00153886]
[1772983271782,0.79003104,1942.7,1942.0,0.00153886]
[1772983272074,0.28992489,1942.7,1942.0,0.00153886]
[1772983273096,0.79003104,1942.8,1942.0,0.00153886]
[1772983273798,0.28992489,1942.8,1942.2,0.14948499]
[1772983274094,1.7866574,1943.2,1942.2,0.14948499]
[1772983274293,0.57113252,1943.1,1942.2,0.14948499]
[1772983276877,1.19789252,1943.0,1942.3,1.28713381]
[1772983277816,0.50010615,1942.9,1942.3,1.28713381]
[1772983279424,0.69778637,1943.0,1942.3,1.28713381]
[1772983279973,0.69778637,1943.0,1942.4,0.14948499]
[1772983280219,0.50010615,1943.3,1942.4,0.14948499]
[1772983280525,0.50010615,1943.6,1942.4,0.14948499]
[1772983281319,0.50010615,1943.9,1942.6,0.14948499]
[1772983282019,0.50010615,1943.9,1942.6,0.21502099]
[1772983283490,0.50010615,1943.9,1942.8,0.14948499]
[1772983284905,0.50010615,1943.9,1942.8,0.21502099]
[1772983285216,0.001,1943.8,1942.8,0.21502099]
[1772983285521,0.001,1943.8,1943.0,0.14948499]
[1772983287504,0.001,1943.8,1943.1,1.28660388]
[1772983290618,0.50010615,1943.7,1943.1,1.28660388]
[1772983291232,0.47046415,1943.8,1943.2,0.45624291]
[1772983295915,0.47046415,1943.8,1943.4,0.45352592]
[1772983297299,0.001,1943.7,1943.4,0.45352592]
[1772983297631,0.50001621,1943.7,1943.3,1.28757146]
[1772983298013,0.50001621,1943.7,1943.3,0.0011]
[1772983302029,0.50001621,1943.7,1943.3,1.28757146]
[1772983310318,0.49901621,1943.6,1943.3,1.28757146]
[1772983312817,0.49901621,1943.6,1943.3,0.0011]
[1772983313133,0.49901621,1943.5,1943.2,0.0011]
[1772983313338,0.49901621,1943.5,1943.0,0.0011]
[1772983314841,0.49901621,1943.3,1943.0,0.0011]
[1772983315539,0.49901621,1943.1,1942.4,1.28814999]
[1772983315732,0.49901621,1943.1,1942.4,0.0011]
[1772983315913,1.98301621,1943.1,1942.4,0.0011]
[1772983316113,0.49901621,1942.8,1942.4,0.0011]
[1772983316819,0.49901621,1942.6,1942.4,0.0011]
[1772983317712,0.49901621,1942.6,1942.1,0.0011]
[1772983319041,0.49901621,1942.4,1942.1,0.0011]
[1772983319842,0.49901621,1942.4,1941.6,0.45352592]
[1772983320047,1.98701621,1942.4,1941.6,0.45352592]
[1772983320342,0.49901621,1942.3,1941.6,0.45352592]
[1772983320534,0.49901621,1942.3,1941.5,0.45352592]
[1772983320733,1.488,1942.4,1941.3,0.20238253]
[1772983320734,1.02945632,1942.2,1941.3,0.20238253]
[1772983320935,0.49901621,1941.9,1941.3,1.9437015]
[1772983321153,0.49901621,1941.9,1941.4,0.45352592]
[1772983321468,0.49901621,1941.9,1941.3,0.20238253]
[1772983321615,0.49901621,1941.9,1941.3,1.4901713]
[1772983321973,0.49901621,1941.8,1941.6,0.0011]
[1772983322953,1.78054596,1941.7,1941.6,0.0011]
[1772983323327,0.49301442,1941.6,1941.3,0.20348253]
[1772983323846,0.49301442,1941.9,1941.4,0.47488997]
[1772983324036,0.49301442,1941.9,1941.3,1.96611984]
[1772983324234,0.49301442,1941.9,1941.4,0.47488997]
[1772983324845,0.49301442,1941.9,1941.3,1.99044305]
[1772983325047,0.46951218,1941.8,1941.3,1.99044305]
[1772983325254,0.46951218,1941.8,1941.4,0.49921318]
[1772983326244,0.46951218,1941.8,1941.3,1.49122987]
[1772983328454,0.46951218,1941.9,1941.4,0.49921318]
[1772983328657,1.49892846,1941.4,1941.3,1.49122987]
[1772983328856,1.48415073,1941.4,1941.3,1.49122987]
[1772983329051,0.50003884,1941.9,1941.3,1.49122987]
[1772983330556,0.50003884,1941.8,1941.3,1.49122987]
[1772983330764,0.50003884,1941.8,1941.3,0.20348253]
[1772983330926,0.50003884,1941.7,1941.3,1.49126207]
[1772983331950,0.50003884,1941.7,1941.3,0.20348253]
[1772983332154,0.50003884,1941.7,1941.3,1.49127133]
[1772983332464,0.50003884,1941.6,1941.3,0.20348253]
[1772983332854,0.50003884,1941.6,1941.3,1.49127604]
[1772983333157,0.50003884,1941.6,1941.3,0.20348253]
[1772983333562,0.50003884,1941.6,1941.3,1.49127841]
[1772983334265,0.50003884,1941.6,1941.3,0.20348253]
[1772983334670,0.50003884,1941.5,1941.3,0.20348253]
[1772983336471,0.50003884,1941.5,1941.3,1.49127161]
[1772983336850,0.50003884,1941.5,1941.3,1.49127072]
[1772983337165,1.2885169,1941.8,1941.3,1.49127072]
[1772983337353,0.001,1941.8,1941.3,1.49127072]
[1772983337559,0.50048884,1941.8,1941.4,0.00109315]
[1772983338056,0.49948884,1941.7,1941.3,1.49127072]
[1772983338372,0.001,1941.8,1941.4,0.22452726]
[1772983338534,0.46951218,1942.2,1941.4,0.22452646]
[1772983338740,0.47051218,1942.2,1941.4,0.22452646]
[1772983339574,0.46951218,1942.2,1941.4,0.22452646]
[1772983340955,0.46951218,1942.2,1941.6,0.22452488]
[1772983343168,0.46951218,1942.2,1941.7,1.28753154]
[1772983343376,0.46951218,1942.2,1941.7,1.51205487]
[1772983344461,0.46951218,1942.0,1941.7,1.28753154]
[1772983345252,0.46951218,1942.2,1941.7,1.28753154]
[1772983345573,0.47051218,1942.2,1941.7,1.28753154]
[1772983345977,0.47051218,1942.2,1941.7,1.78674472]
[1772983346751,0.001,1942.1,1941.7,1.78674472]
[1772983347077,0.002,1942.1,1941.7,1.78674472]
[1772983347577,0.47151218,1942.1,1941.7,1.78674472]
[1772983348147,0.47151218,1942.1,1941.7,1.28753154]
[1772983348351,0.47151218,1942.1,1941.8,0.49921318]
[1772983348983,0.002,1942.1,1941.8,0.49921318]
[1772983350276,0.002,1942.1,1942.0,0.49921318]
[1772983350480,0.21157938,1942.5,1942.0,0.49921318]
[1772983350692,0.001,1942.2,1942.0,0.49921318]
[1772983352399,0.001,1942.2,1942.1,1.78647954]
[1772983354407,0.001,1942.2,1941.8,0.48511283]
[1772983354601,0.21257595,1942.2,1941.8,0.48511283]
[1772983354768,1.28703505,1942.5,1941.8,0.48511283]
[1772983354769,0.21257529,1942.1,1941.8,0.48511283]
[1772983354978,0.21157529,1942.1,1941.8,0.48511283]
[1772983355179,0.21157529,1942.3,1941.8,0.48511283]
[1772983355403,0.21257529,1942.3,1941.8,0.48511283]
[1772983355975,1.28703505,1942.5,1941.5,1.77387695]
[1772983355976,0.21157464,1942.1,1941.5,1.77387695]
[1772983356181,0.21157464,1942.1,1941.5,1.28876412]
[1772983356382,0.21157464,1941.9,1941.5,0.0011]
[1772983356578,0.21157464,1941.9,1941.5,0.48621283]
[1772983356780,0.001,1941.8,1941.5,0.48621283]
[1772983357174,0.21157464,1941.9,1941.5,0.48621283]
[1772983357381,0.001,1941.9,1941.5,0.48621283]
[1772983358315,0.21157335,1942.0,1941.5,0.48621283]
[1772983358485,0.001,1941.9,1941.6,1.77271068]
[1772983359609,0.21047272,1941.8,1941.5,6.43808927]
[1772983359785,0.21047272,1941.8,1941.6,0.0011]
[1772983360513,0.2104721,1941.7,1941.6,0.0011]
[1772983363010,1.49800364,1941.7,1941.6,0.0011]
[1772983364015,0.2104721,1941.7,1941.6,0.0011]
[1772983364513,1.49800364,1941.7,1941.6,0.0011]
[1772983364714,0.2104721,1941.7,1941.6,0.0011]
[1772983364886,1.49800364,1941.7,1941.6,0.0011]
[1772983366010,0.2104721,1941.7,1941.6,0.0011]
[1772983366201,1.49800364,1941.7,1941.6,0.0011]
[1772983367014,0.2104721,1941.7,1941.6,0.0011]
[1772983372316,5.14944734,1942.0,1941.6,6.43918927]
[1772983372515,0.21146515,1942.1,1941.8,0.48511283]
[1772983374492,0.21146515,1942.1,1941.9,0.48511283]
[1772983374493,0.001,1942.1,1941.9,0.48511283]
[1772983376503,0.001,1942.1,1941.8,1.28741424]
[1772983376504,0.21146304,1942.1,1941.8,1.28741424]
[1772983376823,0.21146304,1942.1,1941.8,6.43808927]
[1772983378695,0.21046152,1942.0,1941.8,6.43808927]
[1772983381642,0.21046005,1941.8,1941.6,0.0011]
[1772983381813,0.21046005,1941.8,1941.5,0.0011]
[1772983382012,1.4966982,1942.0,1941.6,6.43808927]
[1772983382223,0.001,1942.1,1941.7,0.48511283]
[1772983382439,1.28827217,1942.1,1941.8,0.48511283]